fUSD/lending_fUSD_20240203
["ID","MTS","AMOUNT","RATE_DAILY","PERIOD"]
[313219280,1706967051815,-500.0,0.00024439,2]
[313219281,1706967051823,-500.0,0.00024439,2]
[313219282,1706967051833,-562.87,0.00024439,2]
[313219283,1706967051841,-500.0,0.00024439,2]
[313219284,1706967051850,-8524.74,0.00024439,2]
[313219285,1706967051859,-500.0,0.00024439,2]
[313219286,1706967051868,-500.0,0.00024439,2]
[313219287,1706967051877,-520.88,0.00024439,2]
[313219288,1706967051886,-500.0,0.00024439,2]
[313219289,1706967051895,-500.0,0.00024439,2]
[313219290,1706967051904,-541.55,0.00024439,2]
[313219291,1706967051914,-500.0,0.00024439,2]
[313219292,1706967051924,-607.69,0.00024439,2]
[313219293,1706967051933,-1233.62,0.00024439,2]
[313219294,1706967051942,-500.0,0.00024439,2]
[313219295,1706967051951,-500.0,0.00024439,2]
[313219296,1706967051961,-689.93,0.00024439,2]
[313219297,1706967051971,-500.0,0.00024439,2]
[313219298,1706967051980,-500.0,0.00024439,2]
[313219299,1706967051989,-1066.18,0.00024439,2]
[313219300,1706967051998,-500.0,0.00024439,2]
[313219301,1706967052010,-500.0,0.00024439,2]
[313219302,1706967052019,-500.0,0.00024439,2]
[313219303,1706967052028,-500.0,0.00024439,2]
[313219304,1706967052038,-500.0,0.00024439,2]
[313219305,1706967052047,-500.0,0.00024439,2]
[313219306,1706967052056,-500.0,0.00024439,2]
[313219307,1706967052065,-1533.71,0.00024439,2]
[313219308,1706967052075,-500.0,0.00024439,2]
[313219309,1706967052084,-1939.99,0.00024439,2]
[313219310,1706967052094,-500.0,0.00024439,2]
[313219311,1706967052103,-500.0,0.00024439,2]
[313219312,1706967052113,-704.24,0.00024439,2]
[313219313,1706967052122,-500.0,0.00024439,2]
[313219314,1706967052132,-500.0,0.00024439,2]
[313219315,1706967052142,-500.0,0.00024439,2]
[313219316,1706967052151,-500.0,0.00024439,2]
[313219317,1706967052162,-500.0,0.00024439,2]
[313219318,1706967052172,-500.0,0.00024439,2]
[313219319,1706967052183,-804.23,0.00024439,2]
[313219320,1706967052193,-1502.46,0.00024439,2]
[313219321,1706967052204,-1755.72,0.00024439,2]
[313219322,1706967052213,-500.0,0.00024439,2]
[313219323,1706967052222,-647.45,0.00024439,2]
[313219324,1706967052231,-500.0,0.00024439,2]
[313219325,1706967052241,-500.0,0.00024439,2]
[313219326,1706967052250,-500.0,0.00024439,2]
[313219327,1706967052259,-500.0,0.00024439,2]
[313219328,1706967052269,-1885.06,0.00024439,2]
[313219329,1706967052279,-500.0,0.00024439,2]
[313219330,1706967052289,-722.12,0.00024439,2]
[313219331,1706967052298,-287.74149088,0.00024439,2]
[313219332,1706967052307,-500.0,0.00024439,2]
[313219333,1706967052316,-500.0,0.00024439,2]
[313219334,1706967052326,-500.0,0.00024439,2]
[313219335,1706967052335,-1018.0,0.000245,2]
[313219336,1706967052344,-454.0,0.000245,12]
[313219337,1706967052353,-555.57,0.00024586,2]
[313219338,1706967052362,-555.53,0.00024588,2]
[313219339,1706967052372,-300.0,0.00024596,2]
[313219340,1706967052380,-878.06,0.000246,2]
[313219341,1706967052389,-500.0,0.000246,2]
[313219342,1706967052399,-697.41,0.000246,2]
[313219343,1706967052408,-500.0,0.00024601,2]
[313219344,1706967052417,-844.92,0.00024601,2]
[313219345,1706967052427,-905.64,0.00024601,2]
[313219346,1706967052436,-500.0,0.00024601,2]
[313219347,1706967052445,-214.0,0.0002463,2]
[313219348,1706967052454,-205.0,0.0002463,2]
[313219349,1706967052465,-2500.0,0.00024658,3]
[313219350,1706967052475,-250.0,0.00024658,2]
[313219351,1706967052484,-500.0,0.00024713,2]
[313219352,1706967052495,-500.0,0.00024713,2]
[313219353,1706967052575,-500.0,0.00024713,2]
[313219354,1706967052585,-500.0,0.00024713,2]
[313219355,1706967052594,-718.23,0.00024713,2]
[313219356,1706967052603,-500.0,0.00024713,2]
[313219357,1706967052613,-500.0,0.00024713,2]
[313219358,1706967052622,-583.57,0.00024713,2]
[313219359,1706967052631,-600.25,0.00024713,2]
[313219360,1706967052640,-500.0,0.00024713,2]
[313219361,1706967052651,-500.0,0.00024713,2]
[313219362,1706967052661,-1094.28,0.00024713,2]
[313219363,1706967052671,-500.0,0.00024713,2]
[313219364,1706967052681,-500.0,0.00024713,2]
[313219365,1706967052691,-1455.45,0.00024713,2]
[313219366,1706967052700,-500.0,0.00024713,2]
[313219367,1706967052709,-500.0,0.00024713,2]
[313219368,1706967052719,-597.23,0.00024713,2]
[313219369,1706967052729,-500.0,0.00024713,2]
[313219370,1706967052741,-500.0,0.00024713,2]
[313219371,1706967052752,-8496.32,0.00024713,2]
[313219372,1706967052761,-500.0,0.00024713,2]
[313219373,1706967052770,-500.0,0.00024713,2]
[313219374,1706967052779,-500.0,0.00024713,2]
[313219375,1706967052789,-500.0,0.00024713,2]
[313219376,1706967052798,-500.0,0.00024713,2]
[313219377,1706967052808,-500.0,0.00024713,2]
[313219378,1706967052818,-1626.48,0.00024713,2]
[313219379,1706967052827,-500.0,0.00024713,2]
[313219380,1706967052835,-500.0,0.00024713,2]
[313219381,1706967052845,-500.0,0.00024713,2]
[313219382,1706967052854,-784.58,0.00024713,2]
[313219383,1706967052863,-564.24,0.00024713,2]
[313219384,1706967052872,-500.0,0.00024713,2]
[313219385,1706967052882,-500.0,0.00024713,2]
[313219386,1706967052891,-500.0,0.00024713,2]
[313219387,1706967052900,-500.0,0.00024713,2]
[313219388,1706967052909,-764.69,0.00024713,2]
[313219389,1706967052918,-500.0,0.00024713,2]
[313219390,1706967052927,-1009.0,0.00024713,2]
[313219391,1706967052936,-500.0,0.00024713,2]
[313219392,1706967052945,-699.25,0.00024713,2]
[313219393,1706967052954,-500.0,0.00024713,2]
[313219394,1706967052963,-500.0,0.00024713,2]
[313219395,1706967052973,-500.0,0.00024713,2]
[313219396,1706967052982,-500.0,0.00024713,2]
[313219397,1706967052991,-500.0,0.00024713,2]
[313219398,1706967053001,-562.87,0.00024713,2]
[313219399,1706967053010,-500.0,0.00024713,2]
[313219400,1706967053020,-8524.74,0.00024713,2]
[313219401,1706967053030,-500.0,0.00024713,2]
[313219402,1706967053039,-500.0,0.00024713,2]
[313219403,1706967053049,-520.88,0.00024713,2]
[313219404,1706967053060,-500.0,0.00024713,2]
[313219405,1706967053070,-500.0,0.00024713,2]
[313219406,1706967053082,-541.55,0.00024713,2]
[313219407,1706967053101,-500.0,0.00024713,2]
[313219408,1706967053120,-607.69,0.00024713,2]
[313219409,1706967053140,-1233.62,0.00024713,2]
[313219410,1706967053160,-500.0,0.00024713,2]
[313219411,1706967053176,-500.0,0.00024713,2]
[313219412,1706967053194,-689.93,0.00024713,2]
[313219413,1706967053212,-500.0,0.00024713,2]
[313219414,1706967053227,-500.0,0.00024713,2]
[313219415,1706967053245,-1066.18,0.00024713,2]
[313219416,1706967053260,-500.0,0.00024713,2]
[313219417,1706967053277,-500.0,0.00024713,2]
[313219418,1706967053297,-500.0,0.00024713,2]
[313219419,1706967053311,-500.0,0.00024713,2]
[313219420,1706967053325,-500.0,0.00024713,2]
[313219421,1706967053341,-500.0,0.00024713,2]
[313219422,1706967053354,-500.0,0.00024713,2]
[313219423,1706967053369,-1533.71,0.00024713,2]
[313219424,1706967053383,-500.0,0.00024713,2]
[313219425,1706967053397,-1939.99,0.00024713,2]
[313219426,1706967053411,-500.0,0.00024713,2]
[313219427,1706967053426,-500.0,0.00024713,2]
[313219428,1706967053442,-704.24,0.00024713,2]
[313219429,1706967053455,-500.0,0.00024713,2]
[313219430,1706967053474,-500.0,0.00024713,2]
[313219431,1706967053490,-500.0,0.00024713,2]
[313219432,1706967053504,-500.0,0.00024713,2]
[313219433,1706967053518,-500.0,0.00024713,2]
[313219434,1706967053533,-500.0,0.00024713,2]
[313219435,1706967053547,-804.23,0.00024713,2]
[313219436,1706967053563,-1502.46,0.00024713,2]
[313219437,1706967053578,-1755.72,0.00024713,2]
[313219438,1706967053592,-500.0,0.00024713,2]
[313219439,1706967053607,-500.0,0.00024713,2]
[313219440,1706967053622,-647.45,0.00024713,2]
[313219441,1706967053636,-500.0,0.00024713,2]
[313219442,1706967053651,-500.0,0.00024713,2]
[313219443,1706967053666,-500.0,0.00024713,2]
[313219444,1706967053680,-1885.06,0.00024713,2]
[313219445,1706967053694,-500.0,0.00024713,2]
[313219446,1706967053710,-722.12,0.00024713,2]
[313219447,1706967053724,-500.0,0.00024713,2]
[313219448,1706967053739,-500.0,0.00024713,2]
[313219449,1706967053753,-500.0,0.00024713,2]
[313219450,1706967053769,-152.57148147,0.0002475,2]
[313219451,1706967053784,-214.0,0.0002482,2]
[313219452,1706967053798,-205.0,0.0002482,2]
[313219453,1706967053813,-505.79,0.0002485,2]
[313219454,1706967053828,-878.06,0.00024874,2]
[313219455,1706967053843,-500.0,0.00024874,2]
[313219456,1706967053859,-697.41,0.00024874,2]
[313219457,1706967053870,-500.0,0.00024875,2]
[313219458,1706967053881,-844.92,0.00024875,2]
[313219459,1706967053890,-905.64,0.00024875,2]
[313219460,1706967054028,-504.86404884,0.00024875,2]
[313219461,1706967054043,-150.07996762,0.00024963,2]
[313219462,1706967054053,-400.0,0.0002497,2]
[313219463,1706967054062,-400.0,0.0002497,2]
[313219464,1706967054071,-500.0,0.00024987,2]
[313219465,1706967054080,-500.0,0.00024987,2]
[313219466,1706967054089,-500.0,0.00024987,2]
[313219467,1706967054099,-500.0,0.00024987,2]
[313219468,1706967054108,-718.23,0.00024987,2]
[313219469,1706967054117,-354.95643399,0.00024987,2]
[313219470,1706967054126,-500.0,0.00024987,2]
[313219471,1706967054134,-583.57,0.00024987,2]
[313219472,1706967054144,-600.25,0.00024987,2]
[313219473,1706967054153,-500.0,0.00024987,2]
[313219474,1706967054162,-500.0,0.00024987,2]
[313219475,1706967054171,-1094.28,0.00024987,2]
[313219476,1706967054181,-500.0,0.00024987,2]
[313219477,1706967054190,-500.0,0.00024987,2]
[313219478,1706967054198,-1455.45,0.00024987,2]
[313219479,1706967054207,-500.0,0.00024987,2]
[313219480,1706967054217,-500.0,0.00024987,2]
[313219481,1706967054225,-597.23,0.00024987,2]
[313219482,1706967054234,-500.0,0.00024987,2]
[313219483,1706967054243,-500.0,0.00024987,2]
[313219484,1706967054252,-8496.32,0.00024987,2]
[313219485,1706967054261,-500.0,0.00024987,2]
[313219486,1706967054270,-500.0,0.00024987,2]
[313219487,1706967054279,-500.0,0.00024987,2]
[313219488,1706967054288,-500.0,0.00024987,2]
[313219489,1706967054297,-500.0,0.00024987,2]
[313219490,1706967054306,-500.0,0.00024987,2]
[313219491,1706967054315,-1626.48,0.00024987,2]
[313219492,1706967054324,-500.0,0.00024987,2]
[313219493,1706967054333,-500.0,0.00024987,2]
[313219494,1706967054342,-500.0,0.00024987,2]
[313219495,1706967054351,-784.58,0.00024987,2]
[313219496,1706967054360,-564.24,0.00024987,2]
[313219497,1706967054370,-500.0,0.00024987,2]
[313219498,1706967054379,-500.0,0.00024987,2]
[313219499,1706967054388,-500.0,0.00024987,2]
[313219500,1706967054397,-500.0,0.00024987,2]
[313219501,1706967054406,-764.69,0.00024987,2]
[313219502,1706967054416,-500.0,0.00024987,2]
[313219503,1706967054425,-1009.0,0.00024987,2]
[313219504,1706967054435,-500.0,0.00024987,2]
[313219505,1706967054444,-699.25,0.00024987,2]
[313219506,1706967054453,-500.0,0.00024987,2]
[313219507,1706967054465,-500.0,0.00024987,2]
[313219508,1706967054475,-500.0,0.00024987,2]
[313219509,1706967054485,-500.0,0.00024987,2]
[313219510,1706967054495,-500.0,0.00024987,2]
[313219511,1706967054506,-562.87,0.00024987,2]
[313219512,1706967054515,-191.4318068,0.00024987,2]
[313219513,1706967054525,-8524.74,0.00024987,2]
[313219514,1706967054534,-500.0,0.00024987,2]
[313219515,1706967054545,-500.0,0.00024987,2]
[313219516,1706967054556,-520.88,0.00024987,2]
[313219517,1706967054566,-500.0,0.00024987,2]
[313219518,1706967054575,-500.0,0.00024987,2]
[313219519,1706967054584,-541.55,0.00024987,2]
[313219520,1706967054594,-500.0,0.00024987,2]
[313219521,1706967054603,-607.69,0.00024987,2]
[313219522,1706967054612,-1233.62,0.00024987,2]
[313219523,1706967054621,-500.0,0.00024987,2]
[313219524,1706967054630,-500.0,0.00024987,2]
[313219525,1706967054641,-689.93,0.00024987,2]
[313219526,1706967054651,-500.0,0.00024987,2]
[313219527,1706967054662,-500.0,0.00024987,2]
[313219528,1706967054671,-1066.18,0.00024987,2]
[313219529,1706967054680,-500.0,0.00024987,2]
[313219530,1706967054690,-500.0,0.00024987,2]
[313219531,1706967054699,-500.0,0.00024987,2]
[313219532,1706967054710,-500.0,0.00024987,2]
[313219533,1706967054721,-500.0,0.00024987,2]
[313219534,1706967054732,-500.0,0.00024987,2]
[313219535,1706967054743,-500.0,0.00024987,2]
[313219536,1706967054754,-1533.71,0.00024987,2]
[313219537,1706967054763,-500.0,0.00024987,2]
[313219538,1706967054772,-1939.99,0.00024987,2]
[313219539,1706967054783,-500.0,0.00024987,2]
[313219540,1706967054793,-500.0,0.00024987,2]
[313219541,1706967054803,-704.24,0.00024987,2]
[313219542,1706967054812,-500.0,0.00024987,2]
[313219543,1706967054821,-500.0,0.00024987,2]
[313219544,1706967054832,-500.0,0.00024987,2]
[313219545,1706967054841,-500.0,0.00024987,2]
[313219546,1706967054851,-500.0,0.00024987,2]
[313219547,1706967054862,-500.0,0.00024987,2]
[313219548,1706967054873,-804.23,0.00024987,2]
[313219549,1706967054883,-1502.46,0.00024987,2]
[313219550,1706967054895,-1755.72,0.00024987,2]
[313219551,1706967054907,-500.0,0.00024987,2]
[313219552,1706967054916,-500.0,0.00024987,2]
[313219553,1706967054925,-647.45,0.00024987,2]
[313219554,1706967054935,-500.0,0.00024987,2]
[313219555,1706967054944,-500.0,0.00024987,2]
[313219556,1706967054954,-500.0,0.00024987,2]
[313219557,1706967054963,-1885.06,0.00024987,2]
[313219558,1706967054972,-500.0,0.00024987,2]
[313219559,1706967054981,-722.12,0.00024987,2]
[313219560,1706967054990,-500.0,0.00024987,2]
[313219561,1706967055001,-500.0,0.00024987,2]
[313219562,1706967055010,-500.0,0.00024987,2]
[313219563,1706967055020,-304.48967897,0.00025,2]
[313219564,1706967055030,-159.24196843,0.00025,2]
[313219565,1706967055040,-936.6209496,0.00025,2]
[313219566,1706967055051,-1905.81852245,0.00025,2]
[313219567,1706967055061,-1588.97256459,0.00025,2]
[313219568,1706967055070,-202.68780413,0.00025,2]
[313219569,1706967055079,-167.92991373,0.00025,2]
[313219570,1706967055088,-3000.0,0.00025,2]
[313219571,1706967055098,-843.4423144,0.00025,7]
[313219572,1706967055107,-2000.0,0.00025,2]
[313219573,1706967055116,-455.4555371,0.00025,2]
[313219574,1706967055125,-557.61751067,0.00025,2]
[313219575,1706967055134,-425.74227373,0.00025,2]
[313219576,1706967055143,-214.0,0.00025,2]
[313219577,1706967055152,-205.0,0.00025,2]
[313219578,1706967055162,-2602.60078181,0.00025,2]
[313219579,1706967055171,-2015.12,0.00025,2]
[313219580,1706967055180,-1735.48250952,0.00025,2]
[313219581,1706967055189,-4456.10995895,0.00025,2]
[313219582,1706967055198,-345.34636539,0.00025,2]
[313219583,1706967055207,-748.81917035,0.00025,2]
[313219584,1706967055217,-195.62900826,0.00025,2]
[313219585,1706967055226,-454.0,0.00025,13]
[313219586,1706967055235,-868.70627637,0.00025,2]
[313219587,1706967055244,-3000.0,0.00025,2]
[313219588,1706967055253,-200.0,0.00025,2]
[313219589,1706967055261,-1980.893133,0.00025,2]
[313219590,1706967055270,-480.18029298,0.00025,2]
[313219591,1706967055279,-200.0,0.00025,2]
[313219592,1706967055288,-300.0,0.00025,2]
[313219593,1706967055297,-3000.0,0.0002501,2]
[313219594,1706967055306,-3000.0,0.0002502,2]
[313219595,1706967055316,-3000.0,0.0002503,2]
[313219596,1706967055324,-3000.0,0.0002504,2]
[313219597,1706967055334,-3000.0,0.0002505,2]
[313219598,1706967055343,-3000.0,0.0002506,2]
[313219599,1706967055352,-3000.0,0.0002507,2]
[313219600,1706967055362,-3000.0,0.0002508,2]
[313219601,1706967055371,-3000.0,0.0002509,2]
[313219602,1706967055379,-3000.0,0.000251,2]
[313219603,1706967055389,-8135.16,0.00025102,2]
[313219604,1706967055398,-3000.0,0.0002511,2]
[313219605,1706967055407,-3000.0,0.0002512,2]
[313219606,1706967055417,-4940.654452,0.0002513,2]
[313219607,1706967055426,-878.06,0.00025148,2]
[313219608,1706967055435,-500.0,0.00025148,2]
[313219609,1706967055445,-697.41,0.00025148,2]
[313219610,1706967055454,-500.0,0.00025149,2]
[313219611,1706967055670,-844.92,0.00025149,2]
[313219612,1706967055681,-905.64,0.00025149,2]
[313219613,1706967055691,-500.0,0.00025261,2]
[313219614,1706967055700,-500.0,0.00025261,2]
[313219615,1706967055711,-500.0,0.00025261,2]
[313219616,1706967055720,-500.0,0.00025261,2]
[313219617,1706967055729,-718.23,0.00025261,2]
[313219618,1706967055739,-500.0,0.00025261,2]
[313219619,1706967055748,-583.57,0.00025261,2]
[313219620,1706967055758,-600.25,0.00025261,2]
[313219621,1706967055767,-500.0,0.00025261,2]
[313219622,1706967055777,-425.1,0.00025261,2]
[313219623,1706967055788,-1094.28,0.00025261,2]
[313219624,1706967055797,-500.0,0.00025261,2]
[313219625,1706967055806,-500.0,0.00025261,2]
[313219626,1706967055815,-1455.45,0.00025261,2]
[313219627,1706967055825,-500.0,0.00025261,2]
[313219628,1706967055836,-500.0,0.00025261,2]
[313219629,1706967055846,-597.23,0.00025261,2]
[313219630,1706967055855,-500.0,0.00025261,2]
[313219631,1706967055865,-500.0,0.00025261,2]
[313219632,1706967055874,-8496.32,0.00025261,2]
[313219633,1706967055885,-500.0,0.00025261,2]
[313219634,1706967055895,-500.0,0.00025261,2]
[313219635,1706967055907,-500.0,0.00025261,2]
[313219636,1706967055917,-500.0,0.00025261,2]
[313219637,1706967055926,-500.0,0.00025261,2]
[313219638,1706967055937,-500.0,0.00025261,2]
[313219639,1706967055947,-1626.48,0.00025261,2]
[313219640,1706967056029,-500.0,0.00025261,2]
[313219641,1706967056051,-334.94730879,0.00025261,2]
[313219642,1706967056060,-500.0,0.00025261,2]
[313219643,1706967056070,-784.58,0.00025261,2]
[313219644,1706967056079,-564.24,0.00025261,2]
[313219645,1706967056090,-500.0,0.00025261,2]
[313219646,1706967056100,-500.0,0.00025261,2]
[313219647,1706967056110,-500.0,0.00025261,2]
[313219648,1706967056119,-500.0,0.00025261,2]
[313219649,1706967056129,-764.69,0.00025261,2]
[313219650,1706967056138,-500.0,0.00025261,2]
[313219651,1706967056149,-500.0,0.00025261,2]
[313219652,1706967056159,-1009.0,0.00025261,2]
[313219653,1706967056169,-699.25,0.00025261,2]
[313219654,1706967056178,-500.0,0.00025261,2]
[313219655,1706967056187,-500.0,0.00025261,2]
[313219656,1706967056196,-500.0,0.00025261,2]
[313219657,1706967056206,-292.85166291,0.00025261,2]
[313219658,1706967056216,-500.0,0.00025261,2]
[313219659,1706967056225,-562.87,0.00025261,2]
[313219660,1706967056235,-8524.74,0.00025261,2]
[313219661,1706967056245,-500.0,0.00025261,2]
[313219662,1706967056254,-500.0,0.00025261,2]
[313219663,1706967056263,-520.88,0.00025261,2]
[313219664,1706967056273,-500.0,0.00025261,2]
[313219665,1706967056283,-500.0,0.00025261,2]
[313219666,1706967056292,-541.55,0.00025261,2]
[313219667,1706967056301,-500.0,0.00025261,2]
[313219668,1706967056311,-607.69,0.00025261,2]
[313219669,1706967056321,-1233.62,0.00025261,2]
[313219670,1706967056331,-500.0,0.00025261,2]
[313219671,1706967056341,-293.34885601,0.00025261,2]
[313219672,1706967056350,-689.93,0.00025261,2]
[313219673,1706967056359,-500.0,0.00025261,2]
[313219674,1706967056368,-500.0,0.00025261,2]
[313219675,1706967056378,-1066.18,0.00025261,2]
[313219676,1706967056387,-585.32,0.00025261,2]
[313219677,1706967056396,-500.0,0.00025261,2]
[313219678,1706967056405,-452.21,0.00025261,2]
[313219679,1706967056415,-500.0,0.00025261,2]
[313219680,1706967056425,-500.0,0.00025261,2]
[313219681,1706967056436,-500.0,0.00025261,2]
[313219682,1706967056446,-500.0,0.00025261,2]
[313219683,1706967056455,-1533.71,0.00025261,2]
[313219684,1706967056467,-500.0,0.00025261,2]
[313219685,1706967056476,-1939.99,0.00025261,2]
[313219686,1706967056485,-162.74225329,0.00025261,2]
[313219687,1706967056495,-500.0,0.00025261,2]
[313219688,1706967056506,-704.24,0.00025261,2]
[313219689,1706967056515,-500.0,0.00025261,2]
[313219690,1706967056525,-500.0,0.00025261,2]
[313219691,1706967056535,-500.0,0.00025261,2]
[313219692,1706967056545,-500.0,0.00025261,2]
[313219693,1706967056555,-500.0,0.00025261,2]
[313219694,1706967056565,-500.0,0.00025261,2]
[313219695,1706967056575,-804.23,0.00025261,2]
[313219696,1706967056585,-1502.46,0.00025261,2]
[313219697,1706967056594,-1755.72,0.00025261,2]
[313219698,1706967056604,-500.0,0.00025261,2]
[313219699,1706967056613,-500.0,0.00025261,2]
[313219700,1706967056622,-647.45,0.00025261,2]
[313219701,1706967056632,-500.0,0.00025261,2]
[313219702,1706967056641,-500.0,0.00025261,2]
[313219703,1706967056650,-500.0,0.00025261,2]
[313219704,1706967056659,-1885.06,0.00025261,2]
[313219705,1706967056669,-500.0,0.00025261,2]
[313219706,1706967056678,-722.12,0.00025261,2]
[313219707,1706967056688,-453.98,0.00025261,2]
[313219708,1706967056697,-500.0,0.00025261,2]
[313219709,1706967056706,-500.0,0.00025261,2]
[313219710,1706967056715,-151.03304887,0.0002535,2]
[313219711,1706967056725,-152.57148147,0.00025372,2]
[313219712,1706967056734,-878.06,0.00025422,2]
[313219713,1706967056743,-500.0,0.00025422,2]
[313219714,1706967056752,-697.41,0.00025422,2]
[313219715,1706967056762,-500.0,0.00025423,2]
[313219716,1706967056771,-844.92,0.00025423,2]
[313219717,1706967056780,-905.64,0.00025423,2]
[313219718,1706967056789,-181.81261525,0.00025468,2]
[313219719,1706967056798,-454.0,0.000255,13]
[313219720,1706967056807,-200.0,0.000255,2]
[313219721,1706967056817,-500.0,0.00025535,2]
[313219722,1706967056826,-500.0,0.00025535,2]
[313219723,1706967056835,-500.0,0.00025535,2]
[313219724,1706967056844,-582.22493939,0.00025535,2]
[313219725,1706967056853,-718.23,0.00025535,2]
[313219726,1706967056863,-500.0,0.00025535,2]
[313219727,1706967056872,-583.57,0.00025535,2]
[313219728,1706967056881,-600.25,0.00025535,2]
[313219729,1706967056890,-500.0,0.00025535,2]
[313219730,1706967056900,-1094.28,0.00025535,2]
[313219731,1706967056909,-500.0,0.00025535,2]
[313219732,1706967056920,-500.0,0.00025535,2]
[313219733,1706967056929,-1455.45,0.00025535,2]
[313219734,1706967056938,-500.0,0.00025535,2]
[313219735,1706967056947,-578.23620398,0.00025535,2]
[313219736,1706967056956,-597.23,0.00025535,2]
[313219737,1706967056966,-500.0,0.00025535,2]
[313219738,1706967056975,-500.0,0.00025535,2]
[313219739,1706967056984,-8496.32,0.00025535,2]
[313219740,1706967056994,-500.0,0.00025535,2]
[313219741,1706967057003,-500.0,0.00025535,2]
[313219742,1706967057012,-500.0,0.00025535,2]
[313219743,1706967057022,-500.0,0.00025535,2]
[313219744,1706967057031,-500.0,0.00025535,2]
[313219745,1706967057040,-500.0,0.00025535,2]
[313219746,1706967057050,-1626.48,0.00025535,2]
[313219747,1706967057060,-500.0,0.00025535,2]
[313219748,1706967057069,-500.0,0.00025535,2]
[313219749,1706967057079,-784.58,0.00025535,2]
[313219750,1706967057088,-564.24,0.00025535,2]
[313219751,1706967057097,-500.0,0.00025535,2]
[313219752,1706967057107,-500.0,0.00025535,2]
[313219753,1706967057116,-500.0,0.00025535,2]
[313219754,1706967057126,-500.0,0.00025535,2]
[313219755,1706967057135,-764.69,0.00025535,2]
[313219756,1706967057145,-500.0,0.00025535,2]
[313219757,1706967057154,-1009.0,0.00025535,2]
[313219758,1706967057163,-466.49052946,0.00025535,2]
[313219759,1706967057172,-699.25,0.00025535,2]
[313219760,1706967057182,-500.0,0.00025535,2]
[313219761,1706967057191,-500.0,0.00025535,2]
[313219762,1706967057201,-500.0,0.00025535,2]
[313219763,1706967057210,-500.0,0.00025535,2]
[313219764,1706967057219,-562.87,0.00025535,2]
[313219765,1706967057228,-8524.74,0.00025535,2]
[313219766,1706967057238,-500.0,0.00025535,2]
[313219767,1706967057247,-500.0,0.00025535,2]
[313219768,1706967057256,-520.88,0.00025535,2]
[313219769,1706967057266,-500.0,0.00025535,2]
[313219770,1706967057275,-500.0,0.00025535,2]
[313219771,1706967057284,-541.55,0.00025535,2]
[313219772,1706967057294,-500.0,0.00025535,2]
[313219773,1706967057303,-607.69,0.00025535,2]
[313219774,1706967057312,-1233.62,0.00025535,2]
[313219775,1706967057321,-500.0,0.00025535,2]
[313219776,1706967057331,-689.93,0.00025535,2]
[313219777,1706967057340,-500.0,0.00025535,2]
[313219778,1706967057349,-500.0,0.00025535,2]
[313219779,1706967057358,-1066.18,0.00025535,2]